fUSD/lending_fUSD_20240227
["ID","MTS","AMOUNT","RATE_DAILY","PERIOD"]
[315451461,1709041772279,166.05,0.0002164,2]
[315451462,1709041776589,8416.42224745,0.0003,120]
[315451463,1709041785978,500.0,0.0002164,2]
[315451465,1709041820994,2001.0,0.00021,2]
[315451471,1709041833218,-422.83228666,0.00022066,2]
[315451472,1709041833228,-155.0,0.00022067,2]
[315451473,1709041833237,-5311.24263685,0.00022071,4]
[315451474,1709041833247,-512.89,0.00022072,2]
[315451475,1709041833257,-150.0,0.00022082,2]
[315451476,1709041833266,-150.0,0.00022103,2]
[315451477,1709041833277,-150.0,0.00022103,2]
[315451478,1709041833287,-1688.77139339,0.00022104,3]
[315451479,1709041833296,-1000.0,0.00022104,3]
[315451480,1709041833306,-248.65669155,0.00022104,3]
[315451481,1709041833316,-848.762868,0.00022104,3]
[315451482,1709041833327,-302.91153415,0.00022104,3]
[315451483,1709041833336,-166.15,0.00022126,2]
[315451484,1709041833347,-178.9,0.0002214,2]
[315451485,1709041833356,-239.6704,0.000223,2]
[315451486,1709041833366,-6164.03,0.000223,2]
[315451487,1709041833376,-9999.99,0.000223,2]
[315451488,1709041833386,-579.05,0.000223,2]
[315451489,1709041833396,-150.99,0.000223,2]
[315451490,1709041833406,-453.18233898,0.00022309,2]
[315451491,1709041833415,-166.15,0.00022314,2]
[315451492,1709041833425,-166.78,0.00022382,2]
[315451493,1709041833438,-248.8996,0.000224,2]
[315451494,1709041833448,-2726.6063,0.00022439,2]
[315451495,1709041833457,-498.42476872,0.00022439,2]
[315451496,1709041833621,-15886.1237468,0.00022439,2]
[315451497,1709041833632,-421.47418821,0.00022439,2]
[315451498,1709041833676,-1522.916968,0.00022439,2]
[315451499,1709041833694,-5234.68054809,0.00022439,2]
[315451500,1709041833709,-292.44463667,0.00022439,2]
[315451501,1709041833725,-3266.68034931,0.00022439,2]
[315451502,1709041833740,-815.0864552,0.00022439,2]
[315451503,1709041833753,-1138.77341491,0.00022439,2]
[315451504,1709041833766,-651.48000001,0.00022439,2]
[315451505,1709041833780,-3320.74165696,0.00022439,2]
[315451515,1709041834702,-290.168506,0.00022439,2]
[315451516,1709041834715,-4908.13691318,0.00022439,2]
[315451517,1709041834728,-2736.98211796,0.00022439,2]
[315451518,1709041834741,-31545.54918514,0.00022439,2]
[315451519,1709041834754,-755.87959838,0.00022439,2]
[315451520,1709041834768,-13491.95004646,0.00022439,2]
[315451521,1709041834778,-565.2902,0.00022439,2]
[315451522,1709041834789,-204.0,0.00022468,2]
[315451523,1709041834799,-166.15,0.00022503,2]
[315451524,1709041834809,-1209.95,0.00022529,3]
[315451525,1709041834820,-604.97,0.00022529,3]
[315451526,1709041834830,-302.49,0.00022529,3]
[315451527,1709041834840,-151.24,0.00022529,3]
[315451528,1709041834850,-453.75,0.00022529,3]
[315451529,1709041834861,-39630.24756312,0.00022539,2]
[315451530,1709041834874,-1448.7530309,0.00022539,2]
[315451531,1709041834887,-610.90764931,0.00022539,2]
[315451532,1709041834899,-312.06068321,0.00022539,2]
[315451533,1709041834912,-381.79850293,0.00022539,2]
[315451534,1709041834937,-5975.93219277,0.00022539,2]
[315451535,1709041834951,-703.34920165,0.00022539,2]
[315451536,1709041834965,-18053.16807611,0.00022539,2]
[315451537,1709041834976,-711.9816,0.00022539,2]
[315451538,1709041834986,-513.02,0.0002259,2]
[315451539,1709041834996,-777.57417191,0.000226,2]
[315451540,1709041835007,-161.31250721,0.00022615,2]
[315451541,1709041835017,-333.4241,0.00022639,2]
[315451542,1709041835028,-77510.724,0.00022639,2]
[315451543,1709041835038,-151.18448159,0.00022639,2]
[315451544,1709041835049,-166.15,0.00022692,2]
[315451545,1709041835060,-171.72,0.00022712,2]
[315451546,1709041835071,-309.51847398,0.00022738,2]
[315451547,1709041835083,-500.0,0.00022739,2]
[315451548,1709041835094,-500.0,0.00022739,2]
[315451549,1709041835105,-522.09498642,0.00022739,2]
[315451550,1709041835116,-391.14204725,0.00022739,2]
[315451551,1709041835127,-500.0,0.00022739,2]
[315451552,1709041835138,-198.75,0.00022739,2]
[315451553,1709041835149,-357.45,0.00022739,2]
[315451554,1709041835160,-500.0,0.00022739,2]
[315451555,1709041835171,-500.0,0.00022739,2]
[315451556,1709041835182,-500.0,0.00022739,2]
[315451557,1709041835193,-500.0,0.00022739,2]
[315451558,1709041835203,-500.0,0.00022739,2]
[315451559,1709041835215,-500.0,0.00022739,2]
[315451560,1709041835225,-500.0,0.00022739,2]
[315451561,1709041835236,-500.0,0.00022739,2]
[315451562,1709041835246,-500.0,0.00022739,2]
[315451563,1709041835257,-500.0,0.00022739,2]
[315451564,1709041835268,-500.0,0.00022739,2]
[315451565,1709041835279,-155.47937735,0.00022739,2]
[315451566,1709041835290,-500.0,0.00022739,2]
[315451567,1709041835301,-500.0,0.00022739,2]
[315451568,1709041835312,-500.0,0.00022739,2]
[315451569,1709041835324,-500.0,0.00022739,2]
[315451570,1709041835334,-500.0,0.00022739,2]
[315451571,1709041835346,-500.0,0.00022739,2]
[315451572,1709041835358,-230.87754738,0.00022739,2]
[315451573,1709041835369,-500.0,0.00022739,2]
[315451574,1709041835381,-500.0,0.00022739,2]
[315451575,1709041835392,-268.48676649,0.00022739,2]
[315451576,1709041835403,-500.0,0.00022739,2]
[315451577,1709041835414,-500.0,0.00022739,2]
[315451578,1709041835425,-587.25,0.00022739,2]
[315451579,1709041835437,-622.23,0.00022739,2]
[315451580,1709041835448,-500.0,0.00022739,2]
[315451581,1709041835459,-502.47,0.00022739,2]
[315451582,1709041835470,-500.0,0.00022739,2]
[315451583,1709041835482,-507.7,0.00022739,2]
[315451584,1709041835493,-500.0,0.00022739,2]
[315451585,1709041835504,-500.0,0.00022739,2]
[315451586,1709041835518,-500.0,0.00022739,2]
[315451587,1709041835528,-500.0,0.00022739,2]
[315451588,1709041835539,-500.0,0.00022739,2]
[315451589,1709041835551,-500.0,0.00022739,2]
[315451590,1709041835562,-641.5,0.00022739,2]
[315451591,1709041835573,-500.0,0.00022739,2]
[315451592,1709041835584,-500.0,0.00022739,2]
[315451593,1709041835596,-500.0,0.00022739,2]
[315451594,1709041835607,-500.0,0.00022739,2]
[315451595,1709041835618,-277.59697537,0.00022739,2]
[315451596,1709041835637,-222.40302463,0.00022739,2]
[315451597,1709041835649,-96.83846664,0.00022739,2]
[315451598,1709041835662,-357.46371413,0.00022739,2]
[315451602,1709041837580,-399.78781923,0.00022739,2]
[315451603,1709041837591,-91.06192077,0.00022739,2]
[315451604,1709041837641,-408.93807923,0.00022739,2]
[315451605,1709041837650,-500.0,0.00022739,2]
[315451606,1709041837660,-405.88,0.00022739,2]
[315451607,1709041837669,-500.0,0.00022739,2]
[315451608,1709041837678,-500.0,0.00022739,2]
[315451609,1709041837688,-500.0,0.00022739,2]
[315451610,1709041837697,-500.0,0.00022739,2]
[315451611,1709041837706,-500.0,0.00022739,2]
[315451612,1709041837715,-307.12,0.00022739,2]
[315451613,1709041837724,-500.0,0.00022739,2]
[315451614,1709041837734,-500.0,0.00022739,2]
[315451615,1709041837743,-500.0,0.00022739,2]
[315451616,1709041837752,-500.0,0.00022739,2]
[315451618,1709041837762,-500.0,0.00022739,2]
[315451620,1709041837771,-500.0,0.00022739,2]
[315451622,1709041837780,-500.0,0.00022739,2]
[315451624,1709041837789,-500.0,0.00022739,2]
[315451626,1709041837798,-1084.47,0.00022739,2]
[315451629,1709041837808,-500.0,0.00022739,2]
[315451631,1709041837817,-500.0,0.00022739,2]
[315451633,1709041837826,-500.0,0.00022739,2]
[315451635,1709041837836,-500.0,0.00022739,2]
[315451637,1709041837845,-567.57,0.00022739,2]
[315451639,1709041837854,-500.0,0.00022739,2]
[315451641,1709041837864,-500.0,0.00022739,2]
[315451643,1709041837873,-500.0,0.00022739,2]
[315451645,1709041837882,-579.24,0.00022739,2]
[315451647,1709041837891,-500.0,0.00022739,2]
[315451649,1709041837900,-500.0,0.00022739,2]
[315451651,1709041837909,-500.0,0.00022739,2]
[315451653,1709041837918,-500.0,0.00022739,2]
[315451655,1709041837928,-500.0,0.00022739,2]
[315451657,1709041837938,-500.0,0.00022739,2]
[315451659,1709041837947,-500.0,0.00022739,2]
[315451661,1709041837956,-500.0,0.00022739,2]
[315451663,1709041837965,-500.0,0.00022739,2]
[315451665,1709041837974,-156.8,0.00022739,2]
[315451667,1709041837986,-500.0,0.00022739,2]
[315451669,1709041837996,-500.0,0.00022739,2]
[315451670,1709041838005,-205.68310165,0.00022739,2]
[315451864,1709041839932,-294.31689835,0.00022739,2]
[315451867,1709041839944,-211.04552283,0.00022739,2]
[315451906,1709041840208,-288.95447717,0.00022739,2]
[315451908,1709041840218,-500.0,0.00022739,2]
[315451910,1709041840228,-20.0943873,0.00022739,2]
[315451983,1709041841056,-345.99764997,0.00022739,2]
[315452055,1709041841721,-133.90796273,0.00022739,2]
[315452057,1709041841731,-143.95123758,0.00022739,2]
[315452059,1709041841743,-422.08524365,0.00022739,2]
[315452061,1709041841752,-1458.78,0.00022739,2]
[315452063,1709041841761,-500.0,0.00022739,2]
[315452065,1709041841771,-500.0,0.00022739,2]
[315452067,1709041841780,-500.0,0.00022739,2]
[315452069,1709041841789,-500.0,0.00022739,2]
[315452071,1709041841799,-500.0,0.00022739,2]
[315452073,1709041841808,-500.0,0.00022739,2]
[315452075,1709041841818,-500.0,0.00022739,2]
[315452077,1709041841827,-500.0,0.00022739,2]
[315452079,1709041841836,-500.0,0.00022739,2]
[315452081,1709041841846,-500.0,0.00022739,2]
[315452083,1709041841855,-500.0,0.00022739,2]
[315452085,1709041841865,-500.0,0.00022739,2]
[315452087,1709041841873,-451.19638368,0.00022739,2]
[315452090,1709041841885,-707.39361632,0.00022739,2]
[315452092,1709041841896,-23.66707968,0.00022739,2]
[315452094,1709041841908,-476.33292032,0.00022739,2]
[315452096,1709041841917,-500.0,0.00022739,2]
[315452098,1709041841926,-444.54271378,0.00022739,2]
[315452108,1709041842010,-55.45728622,0.00022739,2]
[315452110,1709041842019,-311.10313586,0.00022739,2]
[315452160,1709041842418,-188.89686414,0.00022739,2]
[315452162,1709041842428,-703.94,0.00022739,2]
[315452164,1709041842437,-500.0,0.00022739,2]
[315452166,1709041842447,-595.44391591,0.00022739,2]
[315452168,1709041842456,-500.0,0.00022739,2]
[315452170,1709041842466,-747.83,0.00022739,2]
[315452172,1709041842476,-88.57272899,0.00022739,2]
[315452174,1709041842492,-411.42727101,0.00022739,2]
[315452176,1709041842502,-155.09,0.0002274,2]
[315452178,1709041842512,-155.22,0.0002274,2]
[315452180,1709041842522,-1469.12750709,0.00022859,2]
[315452183,1709041842539,-5668.87249291,0.00022859,2]
[315452185,1709041842548,-166.15,0.00022881,2]
[315452187,1709041842557,-465.83846625,0.00022896,2]
[315452189,1709041842568,-213.60121478,0.00022896,2]
[315452191,1709041842577,-500.0,0.00022896,2]
[315452193,1709041842587,-271.54310082,0.00022897,2]
[315452195,1709041842597,-382.49168769,0.00022897,2]
[315452197,1709041842607,-383.95281975,0.00022897,2]
[315452199,1709041842617,-500.0,0.00022897,2]
[315452201,1709041842627,-500.0,0.00022897,2]
[315452203,1709041842638,-500.0,0.00022898,2]
[315452205,1709041842647,-500.0,0.00022898,2]
[315452207,1709041842657,-151.18448156,0.00022954,2]
[315452209,1709041842667,-3913.88459349,0.00022983,2]
[315452211,1709041842678,-17157.04173049,0.00022984,2]
[315452213,1709041842688,-4917.46908357,0.00022984,2]
[315452215,1709041842698,-27868.79596676,0.00022984,2]
[315452221,1709041842741,780.31512131,0.00021983,2]
[315452223,1709041842754,-22131.20403324,0.00022984,2]
[315452225,1709041842763,-7395.00584676,0.00022984,2]
[315452227,1709041842776,-4772.71733277,0.00022984,2]
[315452229,1709041842785,-500.0,0.00022997,2]
[315452231,1709041842794,-904.58077602,0.00023,2]
[315452235,1709041842824,-1600.80059451,0.00023,2]
[315452237,1709041842836,-2947.10558018,0.00023,2]
[315452240,1709041842848,-3492.5202071,0.00023,2]
[315452242,1709041842857,-630.31619451,0.00023,2]
[315452244,1709041842867,-150.0,0.000231,2]
[315452246,1709041842877,-150.0,0.00023125,2]
[315452248,1709041842886,-269.57,0.00023125,2]
[315452250,1709041842895,-161.31250721,0.00023257,2]
[315452252,1709041842905,-600.0,0.00023279,2]
[315452254,1709041842915,-1955.0,0.00023279,2]
[315452256,1709041842925,-1257.0,0.00023279,2]
[315452258,1709041842934,-1231.0,0.00023279,2]
[315452260,1709041842944,-216.0,0.00023279,2]
[315452261,1709041842955,-162.0,0.00023279,2]
[315452262,1709041842965,-150.0,0.00023279,2]
[315452263,1709041842974,-209.302,0.00023279,2]
[315452264,1709041842984,-875.0,0.00023282,2]
[315452265,1709041842993,-2000.0,0.000233,2]
[315452268,1709041843002,-7335.0,0.000233,2]
[315452270,1709041843011,-3551.71684899,0.00023368,2]
[315452272,1709041843024,-1405.85,0.00023368,2]
[315452274,1709041843036,-25042.42315101,0.00023368,2]
[315452276,1709041843046,-813.82,0.0002355,2]
[315452278,1709041843055,-919.42,0.0002355,2]
[315452280,1709041843064,-919.42,0.0002355,2]
[315452282,1709041843073,-616.86,0.0002355,2]
[315452284,1709041843083,-1102.71965397,0.000236,2]
[315452286,1709041843092,-150.0,0.00023732,2]
[315452288,1709041843102,-150.0,0.00023733,2]
[315452290,1709041843111,-150.0,0.00023756,2]
[315452292,1709041843122,-6894.05344456,0.0002376,2]
[315452294,1709041843132,-152.91066921,0.0002376,2]
[315452296,1709041843141,-176.63,0.0002376,2]
[315452298,1709041843150,-150.0,0.00023763,2]
[315452300,1709041843160,-150.0,0.00023776,2]
[315452302,1709041843169,-1500.0,0.00023782,2]
[315452304,1709041843179,-1500.0,0.00023783,2]
[315452306,1709041843189,-1500.0,0.00023788,2]
[315452308,1709041843200,-150.0,0.00023793,2]
[315452310,1709041843210,-1500.0,0.00023796,2]
[315452312,1709041843219,-150.0,0.00023796,2]
[315452314,1709041843229,-500.0,0.00023796,2]
[315452316,1709041843239,-500.0,0.00023796,2]
[315452318,1709041843248,-500.0,0.00023796,2]
[315452320,1709041843258,-500.0,0.00023796,2]
[315452322,1709041843267,-500.0,0.00023796,2]
[315452324,1709041843277,-500.0,0.00023796,2]
[315452326,1709041843286,-500.0,0.00023796,2]
[315452328,1709041843296,-500.0,0.00023796,2]
[315452330,1709041843305,-1458.78,0.00023796,2]
[315452332,1709041843315,-500.0,0.00023796,2]
[315452334,1709041843324,-500.0,0.00023796,2]
[315452336,1709041843334,-500.0,0.00023796,2]
[315452338,1709041843343,-500.0,0.00023796,2]
[315452340,1709041843352,-500.0,0.00023796,2]
[315452341,1709041843362,-500.0,0.00023796,2]
[315452343,1709041843371,-747.83,0.00023796,2]
[315452345,1709041843380,-150.0,0.00023797,2]
[315452347,1709041843389,-162.58,0.00023797,2]
[315452349,1709041843400,-500.0,0.00023797,2]
[315452351,1709041843410,-500.0,0.00023797,2]
[315452354,1709041843420,-500.0,0.00023797,2]
[315452356,1709041843429,-500.0,0.00023797,2]
[315452357,1709041843439,-500.0,0.00023797,2]
[315452359,1709041843449,-500.0,0.00023797,2]
[315452361,1709041843459,-500.0,0.00023797,2]
[315452364,1709041843469,-500.0,0.00023797,2]
[315452365,1709041843480,-500.0,0.00023797,2]
[315452368,1709041843490,-500.0,0.00023797,2]
[315452369,1709041843499,-500.0,0.00023797,2]
[315452371,1709041843510,-500.0,0.00023797,2]
[315452373,1709041843520,-500.0,0.00023797,2]
[315452375,1709041843530,-500.0,0.00023797,2]
[315452377,1709041843540,-500.0,0.00023797,2]
[315452379,1709041843550,-500.0,0.00023797,2]
[315452382,1709041843561,-500.0,0.00023797,2]
[315452384,1709041843571,-500.0,0.00023797,2]
[315452386,1709041843580,-500.0,0.00023797,2]
[315452387,1709041843590,-355.8,0.00023797,2]
[315452389,1709041843599,-500.0,0.00023797,2]
[315452391,1709041843609,-500.0,0.00023797,2]
[315452393,1709041843618,-1944.62225486,0.00023798,2]
[315452395,1709041843628,-1944.62225486,0.00023798,2]
[315452397,1709041843637,-1944.62225486,0.00023798,2]
[315452399,1709041843646,-1944.62225486,0.00023798,2]
[315452401,1709041843657,-1944.62225486,0.00023798,2]
[315452403,1709041843666,-1944.62225486,0.00023798,2]
[315452406,1709041843675,-1944.62225486,0.00023798,2]
[315452407,1709041843685,-1944.62225486,0.00023798,2]
[315452410,1709041843695,-1944.62225486,0.00023798,2]
[315452412,1709041843704,-3354.55117051,0.00023798,2]
[315452414,1709041843714,-3354.55117048,0.00023798,2]
[315452415,1709041843724,-3354.55117048,0.00023798,2]
[315452418,1709041843734,-3354.55117048,0.00023798,2]
[315452419,1709041843743,-3354.55117048,0.00023798,2]
[315452421,1709041843753,-3354.55117048,0.00023798,2]
[315452423,1709041843762,-3354.55117048,0.00023798,2]
[315452425,1709041843771,-3354.55117048,0.00023798,2]
[315452427,1709041843781,-3354.55117048,0.00023798,2]
[315452429,1709041843790,-1000.0,0.000238,2]
[315452431,1709041843800,-2674.0,0.000238,2]
[315452433,1709041843809,-800.0,0.00023807,2]
[315452435,1709041843818,-200.0,0.00023808,2]
[315452437,1709041843828,-800.0,0.00023808,2]
[315452439,1709041843838,-200.0,0.00023808,2]
[315452441,1709041843848,-150.0,0.0002381,2]
[315452443,1709041843858,-150.0,0.00023817,2]
[315452446,1709041843868,-300.0,0.00023818,2]
[315452448,1709041843877,-491.35,0.00023819,2]
[315452450,1709041843887,-500.0,0.00023819,2]
[315452451,1709041843897,-500.0,0.00023819,2]
[315452453,1709041843907,-500.0,0.00023819,2]
[315452471,1709041844066,-500.0,0.00023819,2]
[315452473,1709041844077,-500.0,0.00023819,2]
[315452475,1709041844087,-500.0,0.00023819,2]
[315452477,1709041844097,-500.0,0.00023819,2]
[315452479,1709041844107,-500.0,0.00023819,2]
[315452481,1709041844117,-500.0,0.00023819,2]
[315452483,1709041844127,-422.09,0.00023819,2]
[315452485,1709041844138,-430.18,0.00023819,2]
[315452487,1709041844148,-500.0,0.00023819,2]
[315452489,1709041844157,-500.0,0.00023819,2]
[315452491,1709041844167,-500.0,0.00023819,2]
[315452493,1709041844177,-500.0,0.00023819,2]
[315452495,1709041844187,-500.0,0.00023819,2]
[315452497,1709041844197,-500.0,0.00023819,2]
[315452499,1709041844207,-500.0,0.00023819,2]
[315452501,1709041844216,-1500.0,0.0002382,2]
[315452503,1709041844226,-150.0,0.00023821,2]
[315452505,1709041844236,-150.0,0.00023821,2]
[315452508,1709041844246,-150.0,0.00023825,2]
[315452510,1709041844255,-150.0,0.00023836,2]
[315452512,1709041844265,-150.0,0.00023842,2]
[315452513,1709041844274,-150.0,0.00023844,2]
[315452515,1709041844284,-150.0,0.00023862,2]
[315452517,1709041844293,-150.0,0.00023865,2]
[315452519,1709041844302,-150.0,0.0002387,2]
[315452521,1709041844312,-1500.0,0.00023872,2]
[315452523,1709041844321,-150.0,0.00023873,2]
[315452525,1709041844331,-150.0,0.00023874,2]
[315452527,1709041844341,-300.0,0.0002389,2]
[315452529,1709041844351,-150.0,0.00023893,2]
[315452532,1709041844361,-5000.0,0.00023894,2]
[315452534,1709041844371,-150.0,0.00023894,2]
[315452536,1709041844380,-3272.80009999,0.00023897,4]
[315452538,1709041844390,-3272.80009999,0.00023897,4]
[315452540,1709041844399,-3272.80009999,0.00023897,4]
[315452542,1709041844409,-3272.80009999,0.00023897,4]
[315452544,1709041844418,-3272.80009999,0.00023897,4]
[315452546,1709041844427,-3272.80009999,0.00023897,4]
[315452548,1709041844437,-3272.80009999,0.00023897,4]
[315452550,1709041844447,-3272.80009999,0.00023897,4]
[315452552,1709041844457,-3272.80009999,0.00023897,4]
[315452554,1709041844467,-3272.79909999,0.00023897,4]
[315452556,1709041844476,-150.60990462,0.00023897,2]
[315452557,1709041844487,-10058.99529401,0.00023897,4]
[315452559,1709041844496,-10058.99529401,0.00023897,4]
[315452561,1709041844506,-10058.99529401,0.00023897,4]
[315452563,1709041844517,-10058.99529401,0.00023897,4]
[315452566,1709041844528,-10058.99529401,0.00023897,4]
[315452568,1709041844538,-10058.99529401,0.00023897,4]
[315452570,1709041844548,-10058.99529401,0.00023897,4]
[315452572,1709041844557,-10058.99529401,0.00023897,4]
[315452573,1709041844567,-10058.99529401,0.00023897,4]
[315452575,1709041844576,-10058.99429401,0.00023897,4]
[315452577,1709041844586,-158.84248804,0.00023898,2]
[315452580,1709041844596,-1944.62225486,0.000239,2]
[315452582,1709041844606,-161.31250721,0.000239,2]
[315452583,1709041844616,-345.0290849,0.000239,2]
[315452586,1709041844626,-417.69224066,0.000239,2]
[315452588,1709041844637,-150.0,0.00023902,2]
[315452590,1709041844646,-150.0,0.00023907,2]
[315452592,1709041844656,-150.0,0.00023907,2]
[315452594,1709041844666,-150.0,0.00023914,2]
[315452596,1709041844675,-150.0,0.00023932,2]
[315452598,1709041844686,-209.90672254,0.0002394,2]
[315452600,1709041844695,-1500.0,0.00023941,2]
[315452602,1709041844705,-1500.0,0.00023941,2]
[315452604,1709041844715,-150.0,0.00023947,2]
[315452606,1709041844724,-413.51,0.00023947,2]
[315452608,1709041844734,-150.0,0.00023962,2]
[315452610,1709041844743,-150.0,0.00023965,2]
[315452612,1709041844753,-150.0,0.00023975,2]
[315452614,1709041844763,-300.0,0.00023975,2]
[315452616,1709041844772,-400.0,0.0002399,2]
[315452618,1709041844782,-1500.0,0.0002399,2]
[315452620,1709041844791,-150.0,0.0002399,2]
[315452622,1709041844800,-500.0,0.00023993,2]
[315452624,1709041844810,-2905.71774962,0.00023994,10]
[315452626,1709041844819,-500.0,0.00023994,2]
[315452628,1709041844829,-500.0,0.00023994,2]
[315452630,1709041844839,-500.0,0.00023994,2]
[315452632,1709041844848,-500.0,0.00023994,2]
[315452634,1709041844857,-500.0,0.00023994,2]
[315452636,1709041844867,-500.0,0.00023994,2]
[315452638,1709041844877,-500.0,0.00023994,2]
[315452639,1709041844886,-500.0,0.00023994,2]
[315452640,1709041844895,-500.0,0.00023994,2]
[315452641,1709041844904,-500.0,0.00023994,2]
[315452642,1709041844913,-500.0,0.00023994,2]
[315452643,1709041844923,-500.0,0.00023994,2]
[315452644,1709041844933,-500.0,0.00023994,2]
[315452645,1709041844942,-277.22,0.00023994,2]
[315452646,1709041844952,-500.0,0.00023994,2]
[315452648,1709041844961,-150.5,0.00023994,2]
[315452650,1709041844971,-500.0,0.00023994,2]
[315452652,1709041844980,-500.0,0.00023994,2]
[315452654,1709041844989,-500.0,0.00023994,2]
[315452656,1709041844999,-500.0,0.00023994,2]
[315452658,1709041845009,-500.0,0.00023994,2]
[315452660,1709041845019,-531.52,0.00023994,2]
[315452662,1709041845029,-500.0,0.00023994,2]
[315452664,1709041845038,-500.0,0.00023994,2]
[315452666,1709041845048,-500.0,0.00023994,2]
[315452668,1709041845057,-854.09,0.00023994,2]
[315452670,1709041845067,-854.09,0.00023994,2]
[315452672,1709041845078,-500.0,0.00023994,2]
[315452674,1709041845088,-500.0,0.00023994,2]
[315452676,1709041845098,-500.0,0.00023994,2]
[315452678,1709041845108,-500.0,0.00023994,2]
[315452681,1709041845119,-500.0,0.00023994,2]
[315452682,1709041845130,-500.0,0.00023994,2]
[315452685,1709041845141,-500.0,0.00023994,2]
[315452686,1709041845152,-500.0,0.00023994,2]
[315452690,1709041845162,-500.0,0.00023994,2]
[315452692,1709041845172,-500.0,0.00023994,2]
[315452694,1709041845182,-500.0,0.00023994,2]
[315452696,1709041845192,-500.0,0.00023994,2]
[315452698,1709041845203,-500.0,0.00023994,2]
[315452700,1709041845213,-500.0,0.00023994,2]
[315452702,1709041845223,-500.0,0.00023994,2]
[315452706,1709041845233,-500.0,0.00023994,2]
[315452709,1709041845244,-500.0,0.00023994,2]
[315452711,1709041845255,-151.98,0.00023994,2]
[315452713,1709041845265,-1084.47,0.00023994,2]
[315452716,1709041845276,-1084.47,0.00023994,2]
[315452718,1709041845286,-500.0,0.00023994,2]
[315452720,1709041845297,-294.66,0.00023994,2]
[315452724,1709041845307,-500.0,0.00023994,2]
[315452726,1709041845317,-500.0,0.00023994,2]
[315452727,1709041845327,-500.0,0.00023994,2]
[315452730,1709041845337,-587.54,0.00023994,2]
[315452731,1709041845346,-500.0,0.00023994,2]
[315452733,1709041845356,-500.0,0.00023994,2]
[315452735,1709041845366,-500.0,0.00023994,2]
[315452737,1709041845375,-500.0,0.00023994,2]
[315452739,1709041845385,-500.0,0.00023994,2]
[315452741,1709041845395,-500.0,0.00023994,2]
[315452743,1709041845404,-628.3,0.00023994,2]
[315452745,1709041845414,-500.0,0.00023994,2]
[315452747,1709041845423,-500.0,0.00023994,2]
[315452749,1709041845433,-1458.78,0.00023994,2]
[315452752,1709041845443,-1458.78,0.00023994,2]
[315452754,1709041845455,-500.0,0.00023994,2]
[315452755,1709041845464,-500.0,0.00023994,2]
[315452758,1709041845474,-500.0,0.00023994,2]
[315452760,1709041845487,-500.0,0.00023994,2]
[315452762,1709041845497,-500.0,0.00023994,2]
[315452764,1709041845509,-500.0,0.00023994,2]
[315452766,1709041845519,-500.0,0.00023994,2]
[315452768,1709041845529,-500.0,0.00023994,2]
[315452769,1709041845539,-500.0,0.00023994,2]
[315452772,1709041845548,-500.0,0.00023994,2]
[315452773,1709041845558,-500.0,0.00023994,2]
[315452776,1709041845568,-224.36834143,0.00023994,2]
[315452777,1709041845578,-500.0,0.00023994,2]
[315452780,1709041845588,-500.0,0.00023994,2]
[315452782,1709041845598,-500.0,0.00023994,2]
[315452784,1709041845607,-500.0,0.00023994,2]
[315452785,1709041845616,-1158.59,0.00023994,2]
[315452787,1709041845626,-1158.59,0.00023994,2]